[Event "Late-Titled-Tuesday-Blitz-January-16-2024"]
[Site "Chess.com"]
[Date "2024.01.16"]
[Round "11"]
[White "IlanSchnaider"]
[Black "Jarrahi2452"]
[Result "0-1"]
[WhiteElo "2779"]
[BlackElo "2643"]
[TimeControl "180+1"]
[EndTime "16:08:19 PST"]
[Termination "Jarrahi2452 won by checkmate"]

1. e4 {[%clk 0:03:00.9]} 1... c5 {[%clk 0:02:59.8]} 2. Nf3 {[%clk 0:02:59.7]}
2... d6 {[%clk 0:02:58.5]} 3. Bb5+ {[%clk 0:02:59.1]} 3... Nd7 {[%clk
0:02:58.1]} 4. a4 {[%clk 0:02:58.9]} 4... a6 {[%clk 0:02:57.1]} 5. Be2 {[%clk
0:02:58.9]} 5... Ngf6 {[%clk 0:02:55.7]} 6. Nc3 {[%clk 0:02:59.2]} 6... b6
{[%clk 0:02:55.7]} 7. d4 {[%clk 0:02:50.7]} 7... cxd4 {[%clk 0:02:53.7]} 8. Nxd4
{[%clk 0:02:49.8]} 8... Bb7 {[%clk 0:02:53.6]} 9. f3 {[%clk 0:02:50.1]} 9... e6
{[%clk 0:02:51.6]} 10. O-O {[%clk 0:02:50.4]} 10... Be7 {[%clk 0:02:51.5]} 11.
Be3 {[%clk 0:02:50.1]} 11... O-O {[%clk 0:02:50.8]} 12. Qe1 {[%clk 0:02:50.3]}
12... Qc7 {[%clk 0:02:48.3]} 13. Qg3 {[%clk 0:02:47.9]} 13... Rac8 {[%clk
0:02:48.5]} 14. Rad1 {[%clk 0:02:42.8]} 14... Rfd8 {[%clk 0:02:46.1]} 15. Qh3
{[%clk 0:02:08.5]} 15... d5 {[%clk 0:02:30]} 16. exd5 {[%clk 0:02:06.8]} 16...
Nxd5 {[%clk 0:02:16.8]} 17. Nxe6 {[%clk 0:01:41.1]} 17... Qe5 {[%clk 0:01:35.8]}
18. Nxd5 {[%clk 0:01:40.4]} 18... Bxd5 {[%clk 0:01:34.2]} 19. Nxd8 {[%clk
0:01:40.8]} 19... Qxe3+ {[%clk 0:01:33.1]} 20. Kh1 {[%clk 0:01:41]} 20... Rxd8
{[%clk 0:01:26.1]} 21. Rxd5 {[%clk 0:01:40.6]} 21... Qxe2 {[%clk 0:01:24.1]} 22.
Rfd1 {[%clk 0:01:40.3]} 22... Nf8 {[%clk 0:01:06.8]} 23. Rxd8 {[%clk 0:01:06]}
23... Bxd8 {[%clk 0:01:07.1]} 24. Rg1 {[%clk 0:00:52.9]} 24... b5 {[%clk
0:01:03.9]} 25. axb5 {[%clk 0:00:50.8]} 25... Bb6 {[%clk 0:01:02.7]} 26. Ra1
{[%clk 0:00:49]} 26... axb5 {[%clk 0:01:02.8]} 27. Qf5 {[%clk 0:00:46.8]} 27...
Qc4 {[%clk 0:00:59.2]} 28. Qd3 {[%clk 0:00:39.1]} 28... Qc6 {[%clk 0:00:55.1]}
29. Qe4 {[%clk 0:00:30.6]} 29... Qc7 {[%clk 0:00:51.6]} 30. c3 {[%clk
0:00:28.4]} 30... g6 {[%clk 0:00:47.4]} 31. Ra8 {[%clk 0:00:26.1]} 31... Kg7
{[%clk 0:00:44.2]} 32. Qe8 {[%clk 0:00:17]} 32... Qc5 {[%clk 0:00:44]} 33. Qe1
{[%clk 0:00:14.4]} 33... Ne6 {[%clk 0:00:44.4]} 34. Ra1 {[%clk 0:00:10]} 34...
Qh5 {[%clk 0:00:42.9]} 35. Rd1 {[%clk 0:00:08.9]} 35... Bc7 {[%clk 0:00:41.4]}
36. h3 {[%clk 0:00:08]} 36... Nf4 {[%clk 0:00:39.8]} 37. Qe4 {[%clk 0:00:06]}
37... Qg5 {[%clk 0:00:38.1]} 38. Qd4+ {[%clk 0:00:04.5]} 38... f6 {[%clk
0:00:35.8]} 39. Qd7+ {[%clk 0:00:03]} 39... Kh6 {[%clk 0:00:34.6]} 40. Qg4
{[%clk 0:00:03.7]} 40... Qxg4 {[%clk 0:00:29.4]} 41. hxg4 {[%clk 0:00:04.6]}
41... Be5 {[%clk 0:00:27.8]} 42. Rd7 {[%clk 0:00:03.1]} 42... Ne6 {[%clk
0:00:26.1]} 43. Rb7 {[%clk 0:00:02.9]} 43... Nc7 {[%clk 0:00:24.3]} 44. Kg1
{[%clk 0:00:02.1]} 44... f5 {[%clk 0:00:24.1]} 45. gxf5 {[%clk 0:00:01.9]} 45...
gxf5 {[%clk 0:00:24.5]} 46. Kf2 {[%clk 0:00:02.8]} 46... Kg5 {[%clk 0:00:24.4]}
47. g3 {[%clk 0:00:02.7]} 47... f4 {[%clk 0:00:24.7]} 48. gxf4+ {[%clk
0:00:03.4]} 48... Bxf4 {[%clk 0:00:23.6]} 49. Ke2 {[%clk 0:00:04]} 49... h5
{[%clk 0:00:22.8]} 50. Kf1 {[%clk 0:00:04.1]} 50... h4 {[%clk 0:00:21.8]} 51.
Kg2 {[%clk 0:00:04.6]} 51... Kf5 {[%clk 0:00:20.5]} 52. Kh3 {[%clk 0:00:04.4]}
52... Bg3 {[%clk 0:00:19.8]} 53. b3 {[%clk 0:00:02.8]} 53... Ne6 {[%clk
0:00:18.1]} 54. Rxb5+ {[%clk 0:00:02.5]} 54... Kf4 {[%clk 0:00:18.6]} 55. Kg2
{[%clk 0:00:01.9]} 55... Ng5 {[%clk 0:00:16.4]} 56. Rb4+ {[%clk 0:00:02.5]}
56... Ke3 {[%clk 0:00:15.3]} 57. Rb7 {[%clk 0:00:01.8]} 57... Bd6 {[%clk
0:00:13.2]} 58. Rd7 {[%clk 0:00:02]} 58... h3+ {[%clk 0:00:13.2]} 59. Kh1 {[%clk
0:00:02.6]} 59... Bf4 {[%clk 0:00:12]} 60. Rg7 {[%clk 0:00:02.2]} 60... Kxf3
{[%clk 0:00:11]} 61. b4 {[%clk 0:00:02.4]} 61... Ne4 {[%clk 0:00:11.2]} 62. Rh7
{[%clk 0:00:02.1]} 62... Nf2+ {[%clk 0:00:09.8]} 63. Kg1 {[%clk 0:00:02.6]}
63... Kg3 {[%clk 0:00:09.8]} 64. Rg7+ {[%clk 0:00:02]} 64... Ng4 {[%clk
0:00:10.2]} 65. Rh7 {[%clk 0:00:02.3]} 65... h2+ {[%clk 0:00:08.7]} 66. Kf1
{[%clk 0:00:01.8]} 66... Bh6 {[%clk 0:00:07.3]} 67. Ke2 {[%clk 0:00:01.8]} 67...
h1=Q {[%clk 0:00:07.3]} 68. Re7 {[%clk 0:00:02.1]} 68... Qf3+ {[%clk 0:00:07.6]}
69. Ke1 {[%clk 0:00:02.2]} 69... Qxc3+ {[%clk 0:00:07.9]} 70. Kd1 {[%clk
0:00:02.5]} 70... Qb3+ {[%clk 0:00:08.1]} 71. Ke1 {[%clk 0:00:02.3]} 71... Qxb4+
{[%clk 0:00:08.4]} 72. Kf1 {[%clk 0:00:02.2]} 72... Qxe7 {[%clk 0:00:09.3]} 73.
Kg1 {[%clk 0:00:02.6]} 73... Qe1# {[%clk 0:00:09.6]} 0-1

[Event "Late-Titled-Tuesday-Blitz-January-16-2024"]
[Site "Chess.com"]
[Date "2024.01.16"]
[Round "11"]
[White "Championnn-9"]
[Black "Makswolf200817"]
[Result "1-0"]
[WhiteElo "2579"]
[BlackElo "2747"]
[TimeControl "180+1"]
[EndTime "16:08:24 PST"]
[Termination "Championnn-9 won by checkmate"]

1. e4 {[%clk 0:02:59.9]} 1... e6 {[%clk 0:02:51.5]} 2. d4 {[%clk 0:02:58.3]}
2... d5 {[%clk 0:02:51.9]} 3. exd5 {[%clk 0:02:58.5]} 3... exd5 {[%clk
0:02:52.2]} 4. Bd3 {[%clk 0:02:58.9]} 4... Nc6 {[%clk 0:02:52.5]} 5. c3 {[%clk
0:02:58.5]} 5... Bd6 {[%clk 0:02:51.9]} 6. Qf3 {[%clk 0:02:58.6]} 6... Nge7
{[%clk 0:02:50.9]} 7. Ne2 {[%clk 0:02:57.4]} 7... O-O {[%clk 0:02:46.2]} 8. Bf4
{[%clk 0:02:55.6]} 8... Re8 {[%clk 0:02:38]} 9. O-O {[%clk 0:02:53.5]} 9... Bf5
{[%clk 0:02:28.3]} 10. Bxd6 {[%clk 0:02:38]} 10... Qxd6 {[%clk 0:02:27.9]} 11.
Nf4 {[%clk 0:02:30.7]} 11... Rad8 {[%clk 0:02:13.6]} 12. Nd2 {[%clk 0:02:29.5]}
12... Qf6 {[%clk 0:02:11.4]} 13. Bxf5 {[%clk 0:02:21.5]} 13... Qxf5 {[%clk
0:02:07.9]} 14. Nd3 {[%clk 0:02:20.6]} 14... Qg5 {[%clk 0:02:02]} 15. Rad1
{[%clk 0:02:17.3]} 15... Nf5 {[%clk 0:02:00.6]} 16. Qf4 {[%clk 0:02:12.2]} 16...
Qg6 {[%clk 0:01:53.1]} 17. Nf3 {[%clk 0:02:02.2]} 17... Re7 {[%clk 0:01:37]} 18.
Rfe1 {[%clk 0:01:55.7]} 18... Rxe1+ {[%clk 0:01:25.2]} 19. Rxe1 {[%clk
0:01:54.2]} 19... Nd6 {[%clk 0:01:16.7]} 20. Nde5 {[%clk 0:01:49.2]} 20... Nxe5
{[%clk 0:01:14.7]} 21. Nxe5 {[%clk 0:01:49.2]} 21... Qc2 {[%clk 0:01:12.6]} 22.
Qc1 {[%clk 0:01:36.9]} 22... Qf5 {[%clk 0:01:05.9]} 23. h3 {[%clk 0:01:36.4]}
23... Ne4 {[%clk 0:01:03.9]} 24. Qe3 {[%clk 0:01:35.4]} 24... f6 {[%clk
0:01:01.3]} 25. Nd3 {[%clk 0:01:33.2]} 25... Re8 {[%clk 0:01:01.6]} 26. Qf4
{[%clk 0:01:30.6]} 26... Qd7 {[%clk 0:00:49.3]} 27. f3 {[%clk 0:01:24.3]} 27...
Nd6 {[%clk 0:00:49.2]} 28. Rxe8+ {[%clk 0:01:22.4]} 28... Qxe8 {[%clk
0:00:50.1]} 29. Kf2 {[%clk 0:01:16.4]} 29... Qb5 {[%clk 0:00:49.3]} 30. Qd2
{[%clk 0:01:10.4]} 30... Kf7 {[%clk 0:00:47.1]} 31. b3 {[%clk 0:01:09.5]} 31...
b6 {[%clk 0:00:45.3]} 32. Qe2 {[%clk 0:01:09.4]} 32... a5 {[%clk 0:00:43]} 33.
Nf4 {[%clk 0:01:06.5]} 33... Qxe2+ {[%clk 0:00:38.7]} 34. Kxe2 {[%clk
0:01:07.4]} 34... c6 {[%clk 0:00:39.4]} 35. Kd3 {[%clk 0:01:04.5]} 35... g5
{[%clk 0:00:39.4]} 36. Ne2 {[%clk 0:01:04.5]} 36... h5 {[%clk 0:00:39.1]} 37. c4
{[%clk 0:01:03.8]} 37... Ke6 {[%clk 0:00:38.2]} 38. Nc3 {[%clk 0:01:02.9]} 38...
Nc8 {[%clk 0:00:28.2]} 39. cxd5+ {[%clk 0:01:02.7]} 39... cxd5 {[%clk
0:00:28.4]} 40. Nb5 {[%clk 0:01:02.3]} 40... Kd7 {[%clk 0:00:28.3]} 41. Ke3
{[%clk 0:01:00.4]} 41... Kc6 {[%clk 0:00:28.1]} 42. Nc3 {[%clk 0:01:00]} 42...
Ne7 {[%clk 0:00:28.4]} 43. g4 {[%clk 0:00:58.7]} 43... h4 {[%clk 0:00:27.2]} 44.
f4 {[%clk 0:00:57.6]} 44... Ng6 {[%clk 0:00:26.8]} 45. fxg5 {[%clk 0:00:57]}
45... fxg5 {[%clk 0:00:27.7]} 46. Ne2 {[%clk 0:00:57.4]} 46... Kd6 {[%clk
0:00:28.2]} 47. Kf3 {[%clk 0:00:55.1]} 47... Ne7 {[%clk 0:00:28.3]} 48. Ke3
{[%clk 0:00:54.7]} 48... Nc6 {[%clk 0:00:28.8]} 49. a3 {[%clk 0:00:53.2]} 49...
Ne7 {[%clk 0:00:28.8]} 50. Ng1 {[%clk 0:00:52.5]} 50... Ke6 {[%clk 0:00:26.5]}
51. Nf3 {[%clk 0:00:53]} 51... Kf6 {[%clk 0:00:27.1]} 52. Ne5 {[%clk 0:00:53.4]}
52... Ke6 {[%clk 0:00:27.3]} 53. Kd3 {[%clk 0:00:52.3]} 53... Nc8 {[%clk
0:00:25.6]} 54. Nf3 {[%clk 0:00:51.7]} 54... Kf6 {[%clk 0:00:26]} 55. b4 {[%clk
0:00:49.6]} 55... axb4 {[%clk 0:00:20.7]} 56. axb4 {[%clk 0:00:49.5]} 56... Nd6
{[%clk 0:00:21.6]} 57. Nd2 {[%clk 0:00:48.2]} 57... Ke6 {[%clk 0:00:22]} 58. Ke3
{[%clk 0:00:39.4]} 58... Nc4+ {[%clk 0:00:17.8]} 59. Kd3 {[%clk 0:00:37.9]}
59... Nb2+ {[%clk 0:00:16.9]} 60. Kc2 {[%clk 0:00:37]} 60... Nc4 {[%clk
0:00:15.8]} 61. Kd3 {[%clk 0:00:36.7]} 61... Nd6 {[%clk 0:00:15]} 62. Ke3 {[%clk
0:00:35.5]} 62... Nb5 {[%clk 0:00:15.4]} 63. Nf3 {[%clk 0:00:34.8]} 63... Kf6
{[%clk 0:00:15.8]} 64. Ne5 {[%clk 0:00:35.2]} 64... Nd6 {[%clk 0:00:16.2]} 65.
Nd7+ {[%clk 0:00:35.6]} 65... Ke6 {[%clk 0:00:15.8]} 66. Nxb6 {[%clk 0:00:36.5]}
66... Ne4 {[%clk 0:00:14.5]} 67. Na4 {[%clk 0:00:35.6]} 67... Kd6 {[%clk
0:00:14.4]} 68. Nc5 {[%clk 0:00:35.6]} 68... Nc3 {[%clk 0:00:15]} 69. Nd3 {[%clk
0:00:35.7]} 69... Nd1+ {[%clk 0:00:13.7]} 70. Kf3 {[%clk 0:00:36.3]} 70... Ke6
{[%clk 0:00:11.8]} 71. b5 {[%clk 0:00:36.1]} 71... Nc3 {[%clk 0:00:10.3]} 72. b6
{[%clk 0:00:36.5]} 72... Kd6 {[%clk 0:00:11.1]} 73. Ne5 {[%clk 0:00:36.5]} 73...
Ne4 {[%clk 0:00:10.3]} 74. Ke3 {[%clk 0:00:33.8]} 74... Nf6 {[%clk 0:00:08.3]}
75. Nf7+ {[%clk 0:00:32.8]} 75... Kc6 {[%clk 0:00:09]} 76. Nxg5 {[%clk
0:00:33.4]} 76... Kxb6 {[%clk 0:00:09.5]} 77. Nf3 {[%clk 0:00:33.9]} 77... Ne4
{[%clk 0:00:08.7]} 78. Nxh4 {[%clk 0:00:34.5]} 78... Ng5 {[%clk 0:00:09.3]} 79.
Nf3 {[%clk 0:00:31.7]} 79... Nxh3 {[%clk 0:00:09.7]} 80. g5 {[%clk 0:00:32]}
80... Nxg5 {[%clk 0:00:04.3]} 81. Nxg5 {[%clk 0:00:32.2]} 81... Kc6 {[%clk
0:00:05.2]} 82. Kf4 {[%clk 0:00:32.4]} 82... Kd6 {[%clk 0:00:05.9]} 83. Kf5
{[%clk 0:00:33]} 83... Ke7 {[%clk 0:00:06.5]} 84. Ke5 {[%clk 0:00:33.4]} 84...
Kd7 {[%clk 0:00:07.4]} 85. Kxd5 {[%clk 0:00:33.9]} 85... Ke7 {[%clk 0:00:08.3]}
86. Ne4 {[%clk 0:00:33.6]} 86... Kd8 {[%clk 0:00:09.2]} 87. Kd6 {[%clk
0:00:33.7]} 87... Ke8 {[%clk 0:00:10.1]} 88. d5 {[%clk 0:00:34.3]} 88... Kd8
{[%clk 0:00:11]} 89. Ke6 {[%clk 0:00:34.8]} 89... Ke8 {[%clk 0:00:11.9]} 90. d6
{[%clk 0:00:35.3]} 90... Kd8 {[%clk 0:00:12.8]} 91. d7 {[%clk 0:00:35]} 91...
Kc7 {[%clk 0:00:13.5]} 92. Ke7 {[%clk 0:00:35.6]} 92... Kc6 {[%clk 0:00:14.4]}
93. d8=Q {[%clk 0:00:36.1]} 93... Kb5 {[%clk 0:00:14.7]} 94. Qc7 {[%clk
0:00:36.2]} 94... Ka4 {[%clk 0:00:15.6]} 95. Qb6 {[%clk 0:00:36.4]} 95... Ka3
{[%clk 0:00:16.2]} 96. Qb5 {[%clk 0:00:36.4]} 96... Ka2 {[%clk 0:00:17.1]} 97.
Qb4 {[%clk 0:00:37.3]} 97... Ka1 {[%clk 0:00:17.9]} 98. Nd2 {[%clk 0:00:35.6]}
98... Ka2 {[%clk 0:00:18.8]} 99. Qb3+ {[%clk 0:00:36.2]} 99... Ka1 {[%clk
0:00:19.7]} 100. Qb1# {[%clk 0:00:37.1]} 1-0

[Event "Late-Titled-Tuesday-Blitz-January-16-2024"]
[Site "Chess.com"]
[Date "2024.01.16"]
[Round "11"]
[White "GMAkobianSTL"]
[Black "Zhigalko_Sergei"]
[Result "1-0"]
[WhiteElo "2751"]
[BlackElo "2970"]
[TimeControl "180+1"]
[EndTime "16:08:31 PST"]
[Termination "GMAkobianSTL won by checkmate"]

1. d4 {[%clk 0:03:00.9]} 1... Nf6 {[%clk 0:03:00]} 2. c4 {[%clk 0:03:00.7]} 2...
e6 {[%clk 0:03:00.6]} 3. Nf3 {[%clk 0:02:59.7]} 3... b6 {[%clk 0:03:01.1]} 4. a3
{[%clk 0:02:59.4]} 4... Bb7 {[%clk 0:03:00.4]} 5. Nc3 {[%clk 0:02:59.1]} 5... d5
{[%clk 0:03:00.9]} 6. Bg5 {[%clk 0:02:58.5]} 6... Be7 {[%clk 0:03:00.8]} 7. Qa4+
{[%clk 0:02:58.3]} 7... c6 {[%clk 0:02:46.8]} 8. cxd5 {[%clk 0:02:57.2]} 8...
exd5 {[%clk 0:02:45.7]} 9. e3 {[%clk 0:02:56.8]} 9... O-O {[%clk 0:02:45.2]} 10.
Bd3 {[%clk 0:02:55.9]} 10... Nbd7 {[%clk 0:02:45.3]} 11. O-O {[%clk 0:02:55.2]}
11... Re8 {[%clk 0:02:45.3]} 12. b4 {[%clk 0:02:51.7]} 12... b5 {[%clk
0:02:26.7]} 13. Qc2 {[%clk 0:02:48.9]} 13... a5 {[%clk 0:02:25.8]} 14. Rab1
{[%clk 0:02:48.5]} 14... axb4 {[%clk 0:02:23]} 15. axb4 {[%clk 0:02:48.1]} 15...
h6 {[%clk 0:02:23.1]} 16. Bf4 {[%clk 0:02:42]} 16... Nb6 {[%clk 0:02:22.2]} 17.
Nxb5 {[%clk 0:02:35.5]} 17... cxb5 {[%clk 0:01:04.7]} 18. Bc7 {[%clk 0:02:33.9]}
18... Qd7 {[%clk 0:00:54.5]} 19. Bxb6 {[%clk 0:02:26]} 19... Ne4 {[%clk
0:00:53.6]} 20. Bc5 {[%clk 0:02:19.4]} 20... Bf6 {[%clk 0:00:52.2]} 21. Ra1
{[%clk 0:02:16.9]} 21... Bc6 {[%clk 0:00:41.8]} 22. h3 {[%clk 0:02:15.9]} 22...
Qf5 {[%clk 0:00:38.8]} 23. Rxa8 {[%clk 0:02:00.9]} 23... Rxa8 {[%clk 0:00:39.7]}
24. Nd2 {[%clk 0:02:00]} 24... Qe6 {[%clk 0:00:22.4]} 25. Nf3 {[%clk 0:01:14]}
25... g6 {[%clk 0:00:22]} 26. Qb2 {[%clk 0:01:12.4]} 26... Qe8 {[%clk
0:00:08.5]} 27. Ra1 {[%clk 0:01:11.3]} 27... Kg7 {[%clk 0:00:08.9]} 28. Bc2
{[%clk 0:00:37.5]} 28... Qc8 {[%clk 0:00:07.1]} 29. Bb3 {[%clk 0:00:35.1]} 29...
Ra6 {[%clk 0:00:06.6]} 30. Rxa6 {[%clk 0:00:33.8]} 30... Qxa6 {[%clk 0:00:07.5]}
31. Qa2 {[%clk 0:00:33.4]} 31... Qb7 {[%clk 0:00:07.4]} 32. Qa5 {[%clk
0:00:30.8]} 32... Qd7 {[%clk 0:00:06.1]} 33. Qb6 {[%clk 0:00:27.4]} 33... Bd8
{[%clk 0:00:06.1]} 34. Qb8 {[%clk 0:00:26.1]} 34... Bc7 {[%clk 0:00:06.1]} 35.
Qf8+ {[%clk 0:00:25.2]} 35... Kh7 {[%clk 0:00:06]} 36. Ne5 {[%clk 0:00:22.7]}
36... Bxe5 {[%clk 0:00:05.9]} 37. dxe5 {[%clk 0:00:22.8]} 37... Nxc5 {[%clk
0:00:06]} 38. Qxc5 {[%clk 0:00:20.9]} 38... Qe6 {[%clk 0:00:04]} 39. f4 {[%clk
0:00:19.7]} 39... Kg7 {[%clk 0:00:03]} 40. Kf2 {[%clk 0:00:19.1]} 40... g5
{[%clk 0:00:03.2]} 41. g4 {[%clk 0:00:17.3]} 41... gxf4 {[%clk 0:00:03]} 42.
exf4 {[%clk 0:00:17.6]} 42... Qg6 {[%clk 0:00:03.8]} 43. Bc2 {[%clk 0:00:16.4]}
43... Qe6 {[%clk 0:00:03.4]} 44. Qd4 {[%clk 0:00:15.9]} 44... Kg8 {[%clk
0:00:03.2]} 45. f5 {[%clk 0:00:16.1]} 45... Qe7 {[%clk 0:00:03.4]} 46. f6 {[%clk
0:00:15.9]} 46... Qc7 {[%clk 0:00:02.5]} 47. Bf5 {[%clk 0:00:14.6]} 47... Bb7
{[%clk 0:00:02.6]} 48. Kg3 {[%clk 0:00:14.1]} 48... Qc1 {[%clk 0:00:02.7]} 49.
Qf4 {[%clk 0:00:11.9]} 49... Qe1+ {[%clk 0:00:02.7]} 50. Qf2 {[%clk 0:00:11.4]}
50... Qxe5+ {[%clk 0:00:02.6]} 51. Qf4 {[%clk 0:00:11.5]} 51... Qxf6 {[%clk
0:00:02.3]} 52. Qb8+ {[%clk 0:00:11.2]} 52... Kg7 {[%clk 0:00:02.1]} 53. Qxb7
{[%clk 0:00:11.8]} 53... Qc3+ {[%clk 0:00:02.5]} 54. Kf4 {[%clk 0:00:11.3]}
54... Qd4+ {[%clk 0:00:02.4]} 55. Kf3 {[%clk 0:00:11.4]} 55... Qc3+ {[%clk
0:00:02.7]} 56. Ke2 {[%clk 0:00:11.2]} 56... Qb2+ {[%clk 0:00:02.4]} 57. Kd1
{[%clk 0:00:11.1]} 57... Qa1+ {[%clk 0:00:02.3]} 58. Kc2 {[%clk 0:00:11.2]}
58... Qa2+ {[%clk 0:00:02.7]} 59. Kc3 {[%clk 0:00:11.3]} 59... Qc4+ {[%clk
0:00:03.1]} 60. Kd2 {[%clk 0:00:11.6]} 60... Qxb4+ {[%clk 0:00:03]} 61. Kd3
{[%clk 0:00:11.9]} 61... Qc4+ {[%clk 0:00:03.2]} 62. Ke3 {[%clk 0:00:12.3]}
62... Qc3+ {[%clk 0:00:03.3]} 63. Bd3 {[%clk 0:00:11.8]} 63... Qe5+ {[%clk
0:00:02.7]} 64. Kd2 {[%clk 0:00:12.1]} 64... Qb2+ {[%clk 0:00:03]} 65. Ke3
{[%clk 0:00:12.4]} 65... Qe5+ {[%clk 0:00:03.1]} 66. Kf3 {[%clk 0:00:12.8]}
66... Qd4 {[%clk 0:00:02.6]} 67. Qxb5 {[%clk 0:00:12.1]} 67... Qe5 {[%clk
0:00:02]} 68. Qc5 {[%clk 0:00:10.7]} 68... Qh2 {[%clk 0:00:02.2]} 69. Qe3 {[%clk
0:00:10.2]} 69... Qxh3+ {[%clk 0:00:02]} 70. Kf4 {[%clk 0:00:10.6]} 70... Qh2+
{[%clk 0:00:02]} 71. Kf5 {[%clk 0:00:10.7]} 71... Qd6 {[%clk 0:00:02]} 72. Qe5+
{[%clk 0:00:10.6]} 72... Qxe5+ {[%clk 0:00:02]} 73. Kxe5 {[%clk 0:00:11]} 73...
d4 {[%clk 0:00:02.9]} 74. Kf5 {[%clk 0:00:09.8]} 74... Kf8 {[%clk 0:00:03.2]}
75. Kf6 {[%clk 0:00:09.9]} 75... Ke8 {[%clk 0:00:03.6]} 76. Bc4 {[%clk
0:00:10.2]} 76... Kf8 {[%clk 0:00:03.9]} 77. Bxf7 {[%clk 0:00:09.8]} 77... d3
{[%clk 0:00:04.6]} 78. Bb3 {[%clk 0:00:09.5]} 78... d2 {[%clk 0:00:04.1]} 79.
Kg6 {[%clk 0:00:09.2]} 79... h5 {[%clk 0:00:01.9]} 80. Kxh5 {[%clk 0:00:09.1]}
80... d1=Q {[%clk 0:00:02.8]} 81. Bxd1 {[%clk 0:00:07.7]} 81... Kg7 {[%clk
0:00:03.5]} 82. g5 {[%clk 0:00:07.7]} 82... Kh8 {[%clk 0:00:04.4]} 83. Kh6
{[%clk 0:00:07.5]} 83... Kg8 {[%clk 0:00:04.6]} 84. g6 {[%clk 0:00:07.6]} 84...
Kh8 {[%clk 0:00:05.5]} 85. g7+ {[%clk 0:00:07.5]} 85... Kg8 {[%clk 0:00:05.9]}
86. Bb3# {[%clk 0:00:07.8]} 1-0